fUSD/lending_fUSD_20250215
["ID","MTS","AMOUNT","RATE_DAILY","PERIOD"]
[353189877,1739639441827,-500.0,0.00011041,2]
[353189878,1739639441837,-307.81,0.00011041,2]
[353189879,1739639441847,-500.0,0.00011041,2]
[353189880,1739639441857,-609.11,0.00011041,2]
[353189881,1739639441866,-500.0,0.00011041,2]
[353189882,1739639441875,-1611.31,0.00011041,2]
[353189883,1739639441884,-500.0,0.00011041,2]
[353189884,1739639441893,-500.0,0.00011041,2]
[353189885,1739639441902,-500.0,0.00011041,2]
[353189886,1739639441912,-217.16,0.00011041,2]
[353189887,1739639441921,-500.0,0.00011041,2]
[353189888,1739639441931,-500.0,0.00011041,2]
[353189889,1739639441940,-500.0,0.00011041,2]
[353189890,1739639441949,-500.0,0.00011041,2]
[353189891,1739639441959,-500.0,0.00011041,2]
[353189892,1739639441969,-500.0,0.00011041,2]
[353189893,1739639441978,-500.0,0.00011041,2]
[353189894,1739639441987,-611.38,0.00011041,2]
[353189895,1739639441997,-500.0,0.00011041,2]
[353189896,1739639442006,-500.0,0.00011041,2]
[353189897,1739639442015,-500.0,0.00011041,2]
[353189898,1739639442025,-500.0,0.00011041,2]
[353189899,1739639442034,-500.0,0.00011041,2]
[353189900,1739639442043,-500.0,0.00011041,2]
[353189901,1739639442052,-500.0,0.00011041,2]
[353189902,1739639442061,-500.0,0.00011041,2]
[353189903,1739639442070,-500.0,0.00011041,2]
[353189904,1739639442080,-500.0,0.00011041,2]
[353189905,1739639442090,-500.0,0.00011041,2]
[353189906,1739639442099,-328.31,0.00011041,2]
[353189907,1739639442109,-516.85,0.00011041,2]
[353189908,1739639442118,-732.53,0.00011041,2]
[353189909,1739639442127,-500.0,0.00011041,2]
[353189910,1739639442137,-500.0,0.00011041,2]
[353189911,1739639442147,-500.0,0.00011041,2]
[353189912,1739639442155,-500.0,0.00011041,2]
[353189913,1739639442322,-500.0,0.00011041,2]
[353189914,1739639442331,-500.0,0.00011041,2]
[353189915,1739639442340,-500.0,0.00011041,2]
[353189916,1739639442349,-500.0,0.00011041,2]
[353189917,1739639442358,-500.0,0.00011041,2]
[353189918,1739639442367,-500.0,0.00011041,2]
[353189919,1739639442376,-500.0,0.00011041,2]
[353189920,1739639442385,-630.19,0.00011041,2]
[353189921,1739639442394,-500.0,0.00011041,2]
[353189922,1739639442403,-500.0,0.00011041,2]
[353189923,1739639442413,-500.0,0.00011041,2]
[353189924,1739639442422,-500.0,0.00011041,2]
[353189925,1739639442431,-725.51,0.00011041,2]
[353189926,1739639442440,-500.0,0.00011041,2]
[353189927,1739639442450,-500.0,0.00011041,2]
[353189928,1739639442459,-500.0,0.00011041,2]
[353189929,1739639442468,-500.0,0.00011041,2]
[353189930,1739639442478,-500.0,0.00011041,2]
[353189931,1739639442488,-436.51,0.00011041,2]
[353189932,1739639442497,-500.0,0.00011041,2]
[353189933,1739639442506,-500.0,0.00011041,2]
[353189934,1739639442516,-500.0,0.00011041,2]
[353189935,1739639442526,-500.0,0.00011041,2]
[353189936,1739639442536,-500.0,0.00011041,2]
[353189937,1739639442546,-500.0,0.00011041,2]
[353189938,1739639442556,-500.0,0.00011041,2]
[353189939,1739639442566,-500.0,0.00011041,2]
[353189940,1739639442576,-500.0,0.00011041,2]
[353189941,1739639442586,-438.68,0.00011041,2]
[353189942,1739639442595,-500.0,0.00011041,2]
[353189943,1739639442605,-500.0,0.00011041,2]
[353189944,1739639442614,-394.14,0.00011041,2]
[353189945,1739639442623,-607.26,0.00011041,2]
[353189946,1739639442632,-500.0,0.00011041,2]
[353189947,1739639442642,-500.0,0.00011041,2]
[353189948,1739639442650,-500.0,0.00011041,2]
[353189949,1739639442659,-500.0,0.00011041,2]
[353189950,1739639442668,-166.35,0.00011041,2]
[353189951,1739639442678,-500.0,0.00011041,2]
[353189952,1739639442687,-500.0,0.00011041,2]
[353189953,1739639442696,-500.0,0.00011041,2]
[353189954,1739639442705,-859.11,0.00011041,2]
[353189955,1739639442716,-500.0,0.00011041,2]
[353189956,1739639442725,-500.0,0.00011041,2]
[353189957,1739639442735,-500.0,0.00011041,2]
[353189958,1739639442744,-500.0,0.00011041,2]
[353189959,1739639442754,-500.0,0.00011041,2]
[353189960,1739639442763,-500.0,0.00011041,2]
[353189961,1739639442775,-500.0,0.00011041,2]
[353189962,1739639442786,-729.9,0.00011041,2]
[353189963,1739639442796,-500.0,0.00011041,2]
[353189964,1739639442805,-500.0,0.00011041,2]
[353189965,1739639442815,-500.0,0.00011041,2]
[353189966,1739639442826,-316.7150687,0.00011041,2]
[353189968,1739639442836,-500.0,0.00011041,2]
[353189969,1739639442846,-500.0,0.00011041,2]
[353189970,1739639442859,-500.0,0.00011041,2]
[353189971,1739639442869,-500.0,0.00011041,2]
[353189972,1739639442878,-500.0,0.00011041,2]
[353189973,1739639442887,-500.0,0.00011041,2]
[353189974,1739639442896,-500.0,0.00011041,2]
[353189975,1739639442906,-500.0,0.00011041,2]
[353189976,1739639442916,-500.0,0.00011041,2]
[353189977,1739639442925,-500.0,0.00011041,2]
[353189978,1739639442934,-500.0,0.00011041,2]
[353189979,1739639442943,-500.0,0.00011041,2]
[353189980,1739639442952,-500.0,0.00011041,2]
[353189981,1739639442963,-561.9,0.00011041,2]
[353189982,1739639442973,-500.0,0.00011041,2]
[353189984,1739639442982,-500.0,0.00011041,2]
[353189986,1739639442992,-500.0,0.00011041,2]
[353189988,1739639443001,-500.0,0.00011041,2]
[353189991,1739639443010,-500.0,0.00011041,2]
[353189993,1739639443019,-500.0,0.00011041,2]
[353189994,1739639443029,-648.24,0.00011041,2]
[353189995,1739639443039,-556.95,0.00011041,2]
[353189996,1739639443048,-500.0,0.00011041,2]
[353189997,1739639443057,-500.0,0.00011041,2]
[353189998,1739639443066,-500.0,0.00011041,2]
[353189999,1739639443075,-500.0,0.00011041,2]
[353190000,1739639443084,-500.0,0.00011041,2]
[353190001,1739639443094,-506.79,0.00011041,2]
[353190002,1739639443103,-525.43,0.00011041,2]
[353190003,1739639443113,-500.0,0.00011041,2]
[353190004,1739639443123,-500.0,0.00011041,2]
[353190006,1739639443132,-151.0,0.00011041,2]
[353190007,1739639443142,-151.0,0.00011041,2]
[353190008,1739639443151,-500.0,0.00011041,2]
[353190009,1739639443160,-500.0,0.00011041,2]
[353190010,1739639443169,-500.0,0.00011041,2]
[353190011,1739639443179,-500.0,0.00011041,2]
[353190012,1739639443189,-500.0,0.00011041,2]
[353190013,1739639443198,-521.28698494,0.00011041,2]
[353190014,1739639443207,-342.6,0.00011041,2]
[353190015,1739639443216,-500.0,0.00011041,2]
[353190016,1739639443226,-500.0,0.00011041,2]
[353190017,1739639443235,-500.0,0.00011041,2]
[353190018,1739639443244,-500.0,0.00011041,2]
[353190019,1739639443253,-500.0,0.00011041,2]
[353190020,1739639443263,-500.0,0.00011041,2]
[353190021,1739639443273,-500.0,0.00011041,2]
[353190022,1739639443282,-500.0,0.00011041,2]
[353190023,1739639443291,-556.79,0.00011041,2]
[353190024,1739639443301,-189.31,0.00011041,2]
[353190025,1739639443310,-500.0,0.00011041,2]
[353190026,1739639443320,-500.0,0.00011041,2]
[353190027,1739639443330,-798.13,0.00011041,2]
[353190028,1739639443340,-589.65,0.00011041,2]
[353190029,1739639443350,-500.0,0.00011041,2]
[353190030,1739639443360,-500.0,0.00011041,2]
[353190031,1739639443370,-500.0,0.00011041,2]
[353190032,1739639443379,-609.38,0.00011041,2]
[353190033,1739639443389,-500.0,0.00011041,2]
[353190034,1739639443398,-612.3,0.00011041,2]
[353190035,1739639443408,-500.0,0.00011041,2]
[353190036,1739639443417,-500.0,0.00011041,2]
[353190037,1739639443426,-500.0,0.00011041,2]
[353190038,1739639443436,-500.0,0.00011041,2]
[353190039,1739639443446,-500.0,0.00011041,2]
[353190040,1739639443456,-500.0,0.00011041,2]
[353190041,1739639443466,-174.22,0.00011041,2]
[353190042,1739639443475,-500.0,0.00011041,2]
[353190043,1739639443484,-511.06,0.00011041,2]
[353190044,1739639443494,-500.0,0.00011041,2]
[353190045,1739639443503,-225.45,0.00011041,2]
[353190046,1739639443513,-695.21,0.00011041,2]
[353190047,1739639443522,-500.0,0.00011041,2]
[353190048,1739639443532,-500.0,0.00011041,2]
[353190049,1739639443541,-500.0,0.00011041,2]
[353190050,1739639443551,-500.0,0.00011041,2]
[353190051,1739639443561,-513.82,0.00011041,2]
[353190052,1739639443571,-500.0,0.00011041,2]
[353190053,1739639443581,-500.0,0.00011041,2]
[353190054,1739639443591,-500.0,0.00011041,2]
[353190055,1739639443601,-681.48,0.00011041,2]
[353190056,1739639443611,-500.0,0.00011041,2]
[353190057,1739639443620,-500.0,0.00011041,2]
[353190058,1739639443630,-500.0,0.00011041,2]
[353190059,1739639443640,-500.0,0.00011041,2]
[353190060,1739639443649,-522.30926193,0.00011041,2]
[353190061,1739639443660,-500.0,0.00011041,2]
[353190062,1739639443669,-586.85,0.00011041,2]
[353190063,1739639443679,-620.31,0.00011041,2]
[353190064,1739639443689,-500.0,0.00011041,2]
[353190065,1739639443699,-404.65669768,0.00011041,2]
[353190066,1739639443708,-500.0,0.00011041,2]
[353190067,1739639443718,-500.0,0.00011041,2]
[353190068,1739639443728,-500.0,0.00011041,2]
[353190069,1739639443738,-500.0,0.00011041,2]
[353190070,1739639443748,-500.0,0.00011041,2]
[353190071,1739639443758,-514.72,0.00011041,2]
[353190072,1739639443768,-500.0,0.00011041,2]
[353190073,1739639443782,-500.0,0.00011041,2]
[353190074,1739639443792,-500.0,0.00011041,2]
[353190075,1739639443802,-500.0,0.00011041,2]
[353190076,1739639443812,-500.0,0.00011041,2]
[353190077,1739639443822,-500.0,0.00011041,2]
[353190078,1739639443833,-500.0,0.00011041,2]
[353190079,1739639443843,-945.55,0.00011041,2]
[353190080,1739639443854,-500.0,0.00011041,2]
[353190081,1739639443863,-340.02,0.00011041,2]
[353190082,1739639443874,-500.0,0.00011041,2]
[353190083,1739639443883,-1936.09,0.00011041,2]
[353190084,1739639443893,-671.54,0.00011041,2]
[353190085,1739639443903,-500.0,0.00011041,2]
[353190086,1739639443914,-504.49335732,0.00011041,2]
[353190087,1739639443923,-500.0,0.00011041,2]
[353190088,1739639443933,-799.42,0.00011041,2]
[353190089,1739639443943,-500.0,0.00011041,2]
[353190090,1739639443952,-500.0,0.00011041,2]
[353190091,1739639443962,-500.0,0.00011041,2]
[353190092,1739639443971,-500.0,0.00011041,2]
[353190093,1739639443980,-500.0,0.00011041,2]
[353190094,1739639443990,-500.0,0.00011041,2]
[353190095,1739639443999,-1226.58,0.00011041,2]
[353190096,1739639444009,-500.0,0.00011041,2]
[353190097,1739639444018,-500.0,0.00011041,2]
[353190098,1739639444027,-500.0,0.00011041,2]
[353190099,1739639444036,-1364.32,0.00011041,2]
[353190100,1739639444046,-1132.02,0.00011041,2]
[353190101,1739639444055,-966.35,0.00011041,2]
[353190102,1739639444065,-500.0,0.00011041,2]
[353190103,1739639444075,-612.57466594,0.00011041,2]
[353190104,1739639444085,-500.0,0.00011041,2]
[353190105,1739639444095,-412.45,0.00011041,2]
[353190106,1739639444104,-500.0,0.00011041,2]
[353190107,1739639444114,-500.0,0.00011041,2]
[353190108,1739639444124,-629.02,0.00011041,2]
[353190109,1739639444133,-642.91,0.00011041,2]
[353190110,1739639444142,-500.0,0.00011041,2]
[353190111,1739639444151,-1020.63,0.00011041,2]
[353190112,1739639444160,-500.0,0.00011041,2]
[353190113,1739639444170,-500.0,0.00011041,2]
[353190114,1739639444181,-500.0,0.00011041,2]
[353190115,1739639444191,-500.0,0.00011041,2]
[353190116,1739639444202,-509.39108,0.00011041,2]
[353190117,1739639444211,-756.88,0.00011041,2]
[353190118,1739639444221,-1372.88,0.00011041,2]
[353190119,1739639444231,-619.41,0.00011041,2]
[353190120,1739639444240,-500.0,0.00011041,2]
[353190121,1739639444249,-500.0,0.00011041,2]
[353190122,1739639444258,-748.33,0.00011041,2]
[353190123,1739639444267,-1057.73,0.00011041,2]
[353190124,1739639444277,-500.0,0.00011041,2]
[353190125,1739639444287,-500.0,0.00011041,2]
[353190126,1739639444296,-568.36,0.00011041,2]
[353190127,1739639444305,-500.0,0.00011041,2]
[353190128,1739639444314,-500.0,0.00011041,2]
[353190129,1739639444323,-758.54,0.00011041,2]
[353190130,1739639444332,-500.0,0.00011041,2]
[353190131,1739639444343,-1532.91,0.00011041,2]
[353190132,1739639444353,-533.8923056,0.00011041,2]
[353190133,1739639444363,-1216.91,0.00011041,2]
[353190134,1739639444373,-500.0,0.00011041,2]
[353190135,1739639444383,-500.0,0.00011041,2]
[353190136,1739639444393,-745.46,0.00011041,2]
[353190137,1739639444402,-1636.35,0.00011041,2]
[353190138,1739639444413,-773.3,0.00011041,2]
[353190139,1739639444423,-500.0,0.00011041,2]
[353190140,1739639444432,-614.98,0.00011041,2]
[353190141,1739639444442,-920.17,0.00011041,2]
[353190142,1739639444452,-392.68244991,0.00011041,2]
[353190143,1739639444462,-689.97,0.00011041,2]
[353190144,1739639444471,-500.0,0.00011041,2]
[353190145,1739639444480,-500.0,0.00011041,2]
[353190146,1739639444488,-500.0,0.00011041,2]
[353190147,1739639444498,-500.0,0.00011041,2]
[353190148,1739639444507,-999.69,0.00011041,2]
[353190149,1739639444517,-1655.48,0.00011041,2]
[353190150,1739639444527,-500.0,0.00011041,2]
[353190151,1739639444536,-669.73,0.00011041,2]
[353190152,1739639444546,-500.0,0.00011041,2]
[353190153,1739639444555,-500.0,0.00011041,2]
[353190154,1739639444565,-500.0,0.00011041,2]
[353190155,1739639444574,-500.0,0.00011041,2]
[353190156,1739639444584,-1252.85,0.00011041,2]
[353190157,1739639444594,-500.0,0.00011041,2]
[353190158,1739639444603,-500.0,0.00011041,2]
[353190159,1739639444613,-1817.48,0.00011041,2]
[353190160,1739639444622,-1065.41,0.00011041,2]
[353190161,1739639444631,-500.0,0.00011041,2]
[353190162,1739639444641,-500.0,0.00011041,2]
[353190163,1739639444651,-500.0,0.00011041,2]
[353190164,1739639444661,-1449.0,0.00011041,2]
[353190165,1739639444671,-4333.02,0.00011041,2]
[353190166,1739639444681,-1804.11,0.00011041,2]
[353190167,1739639444691,-1710.99,0.00011041,2]
[353190168,1739639444700,-500.0,0.00011041,2]
[353190169,1739639444710,-500.0,0.00011041,2]
[353190170,1739639444719,-1246.87,0.00011041,2]
[353190171,1739639444729,-1483.42,0.00011041,2]
[353190172,1739639444738,-3870.78,0.00011041,2]
[353190173,1739639444747,-530.3073691,0.00011041,2]
[353190174,1739639444757,-500.0,0.00011041,2]
[353190175,1739639444766,-1203.02,0.00011041,2]
[353190176,1739639444779,-1118.26,0.00011041,2]
[353190177,1739639444788,-1480.95,0.00011041,2]
[353190178,1739639444798,-574.0,0.00011041,2]
[353190179,1739639444807,-1083.98,0.00011041,2]
[353190180,1739639444818,-925.02,0.00011041,2]
[353190181,1739639444827,-1078.01,0.00011041,2]
[353190182,1739639444837,-1767.51,0.00011041,2]
[353190183,1739639444846,-630.29,0.00011041,2]
[353190184,1739639444858,-500.0,0.00011041,2]
[353190185,1739639444869,-1262.59,0.00011041,2]
[353190186,1739639444878,-1413.3,0.00011041,2]
[353190187,1739639444887,-500.0,0.00011041,2]
[353190188,1739639444896,-250.24,0.00011041,2]
[353190189,1739639444906,-1841.62,0.00011041,2]
[353190190,1739639444917,-956.67,0.00011041,2]
[353190191,1739639444926,-1096.54,0.00011041,2]
[353190192,1739639444936,-1305.88,0.00011041,2]
[353190193,1739639444946,-732.37,0.00011041,2]
[353190194,1739639444955,-500.0,0.00011041,2]
[353190195,1739639444964,-500.0,0.00011041,2]
[353190196,1739639444974,-500.0,0.00011041,2]
[353190197,1739639444984,-903.44,0.00011041,2]
[353190198,1739639444994,-1169.74,0.00011041,2]
[353190199,1739639445004,-1810.94,0.00011041,2]
[353190200,1739639445014,-1825.74,0.00011041,2]
[353190201,1739639445024,-500.0,0.00011041,2]
[353190202,1739639445033,-929.26,0.00011041,2]
[353190203,1739639445043,-1411.43,0.00011041,2]
[353190204,1739639445053,-500.0,0.00011041,2]
[353190205,1739639445062,-500.0,0.00011041,2]
[353190206,1739639445071,-500.0,0.00011041,2]
[353190207,1739639445081,-994.22,0.00011041,2]
[353190208,1739639445090,-500.0,0.00011041,2]
[353190209,1739639445100,-2252.1,0.00011041,2]
[353190210,1739639445109,-500.0,0.00011041,2]
[353190211,1739639445120,-500.0,0.00011041,2]
[353190212,1739639445129,-505.14,0.00011041,2]
[353190213,1739639445139,-2001.05,0.00011041,2]
[353190214,1739639445148,-500.0,0.00011041,2]
[353190215,1739639445158,-446.87,0.00011041,2]
[353190216,1739639445168,-859.75,0.00011041,2]
[353190217,1739639445179,-1238.95,0.00011041,2]
[353190218,1739639445189,-2034.02,0.00011041,2]
[353190219,1739639445199,-769.84,0.00011041,2]
[353190220,1739639445210,-527.13,0.00011041,2]
[353190221,1739639445220,-1422.34,0.00011041,2]
[353190222,1739639445229,-500.0,0.00011041,2]
[353190223,1739639445239,-1405.36,0.00011041,2]
[353190224,1739639445248,-682.01,0.00011041,2]
[353190225,1739639445258,-650.06,0.00011041,2]
[353190226,1739639445267,-500.0,0.00011041,2]
[353190227,1739639445277,-708.99,0.00011041,2]
[353190228,1739639445287,-500.0,0.00011041,2]
[353190229,1739639445297,-1138.23,0.00011041,2]
[353190230,1739639445306,-435.37,0.00011041,2]
[353190231,1739639445315,-500.0,0.00011041,2]
[353190232,1739639445325,-500.0,0.00011041,2]
[353190233,1739639445334,-832.37,0.00011041,2]
[353190234,1739639445343,-1530.46,0.00011041,2]
[353190235,1739639445353,-712.77,0.00011041,2]
[353190236,1739639445363,-500.0,0.00011041,2]
[353190237,1739639445372,-500.0,0.00011041,2]
[353190238,1739639445382,-1081.12,0.00011041,2]
[353190239,1739639445391,-1105.64,0.00011041,2]
[353190240,1739639445401,-800.45,0.00011041,2]
[353190241,1739639445410,-890.19,0.00011041,2]
[353190242,1739639445419,-500.0,0.00011041,2]
[353190243,1739639445429,-899.76,0.00011041,2]
[353190244,1739639445439,-500.0,0.00011041,2]
[353190245,1739639445448,-898.14,0.00011041,2]
[353190246,1739639445458,-541.36,0.00011041,2]
[353190247,1739639445615,-500.0,0.00011041,2]
[353190248,1739639445626,-763.98,0.00011041,2]
[353190249,1739639445637,-695.29,0.00011041,2]
[353190250,1739639445647,-500.0,0.00011041,2]
[353190251,1739639445658,-635.13,0.00011041,2]
[353190252,1739639445668,-500.0,0.00011041,2]
[353190253,1739639445677,-2350.89,0.00011041,2]
[353190254,1739639445687,-500.0,0.00011041,2]
[353190255,1739639445698,-500.0,0.00011041,2]
[353190256,1739639445708,-500.0,0.00011041,2]
[353190257,1739639445717,-1026.92,0.00011041,2]
[353190258,1739639445727,-1720.36,0.00011041,2]
[353190259,1739639445738,-500.0,0.00011041,2]
[353190260,1739639445747,-500.0,0.00011041,2]
[353190261,1739639445757,-781.1,0.00011041,2]
[353190262,1739639445767,-185.64,0.00011057,2]
[353190263,1739639445780,-311.2854912,0.00011064,2]
[353190264,1739639445790,-3294.716,0.00011073,2]
[353190265,1739639445799,-172.099,0.00011073,2]
[353190266,1739639445809,-164.93539072,0.00011073,2]
[353190267,1739639445818,-337.23199526,0.00011073,2]
[353190268,1739639445828,-9283.01233405,0.00011099,2]
[353190269,1739639445839,-9283.01233398,0.00011099,2]
[353190270,1739639445851,-9283.01233398,0.00011099,2]
[353190271,1739639445861,-9283.01233398,0.00011099,2]
[353190272,1739639445871,-9283.01233398,0.00011099,2]
[353190273,1739639445880,-9283.01233398,0.00011099,2]
[353190275,1739639445890,-9283.01233398,0.00011099,2]
[353190276,1739639445900,-9283.01233398,0.00011099,2]
[353190277,1739639445909,-9283.01233398,0.00011099,2]
[353190278,1739639445919,-9283.01233398,0.00011099,2]
[353190279,1739639445929,-1725.0,0.000111,2]
[353190280,1739639445940,-367.0,0.000111,2]
[353190281,1739639445950,-747.0,0.000111,2]
[353190282,1739639445960,-231.0,0.000111,2]
[353190283,1739639445970,-152.05217208,0.00011113,2]
[353190284,1739639445979,-500.0,0.00011117,2]
[353190285,1739639445988,-500.0,0.00011117,2]
[353190286,1739639445998,-500.0,0.00011118,2]
[353190287,1739639446007,-218.21222498,0.00011119,2]
[353190288,1739639446019,-1784.0,0.00011123,2]
[353190289,1739639446029,-334.355567,0.00011123,2]
[353190290,1739639446038,-646.332284,0.00011123,2]
[353190291,1739639446047,-150.036577,0.00011123,2]
[353190292,1739639446057,-382.0,0.00011123,2]
[353190293,1739639446067,-500.0,0.00011123,2]
[353190294,1739639446076,-296.94,0.00011123,2]
[353190295,1739639446085,-500.0,0.00011123,2]
[353190296,1739639446095,-550.06600725,0.00011123,2]
[353190297,1739639446104,-500.0,0.00011123,2]
[353190298,1739639446114,-500.0,0.00011123,2]
[353190299,1739639446124,-500.0,0.00011123,2]
[353190300,1739639446133,-500.0,0.00011123,2]
[353190301,1739639446143,-1611.31,0.00011123,2]
[353190302,1739639446153,-500.0,0.00011123,2]
[353190303,1739639446163,-500.0,0.00011123,2]
[353190304,1739639446172,-516.57,0.00011123,2]
[353190305,1739639446182,-500.0,0.00011123,2]
[353190306,1739639446192,-500.0,0.00011123,2]
[353190307,1739639446202,-500.0,0.00011123,2]
[353190308,1739639446211,-500.0,0.00011123,2]
[353190309,1739639446223,-500.0,0.00011123,2]
[353190310,1739639446233,-500.0,0.00011123,2]
[353190311,1739639446243,-500.0,0.00011123,2]
[353190312,1739639446254,-500.0,0.00011123,2]
[353190313,1739639446264,-500.0,0.00011123,2]
[353190314,1739639446274,-201.79,0.00011123,2]
[353190315,1739639446283,-500.0,0.00011123,2]
[353190316,1739639446293,-500.0,0.00011123,2]
[353190317,1739639446303,-500.0,0.00011123,2]
[353190318,1739639446313,-500.0,0.00011123,2]
[353190319,1739639446322,-500.0,0.00011123,2]
[353190320,1739639446332,-500.0,0.00011123,2]
[353190321,1739639446341,-732.53,0.00011123,2]
[353190322,1739639446350,-500.0,0.00011123,2]
[353190323,1739639446360,-500.0,0.00011123,2]
[353190324,1739639446370,-500.0,0.00011123,2]
[353190325,1739639446379,-500.0,0.00011123,2]
[353190326,1739639446389,-500.0,0.00011123,2]
[353190327,1739639446398,-500.0,0.00011123,2]
[353190328,1739639446408,-400.36,0.00011123,2]
[353190329,1739639446418,-611.03,0.00011123,2]
[353190330,1739639446427,-500.0,0.00011123,2]
[353190331,1739639446438,-500.0,0.00011123,2]
[353190332,1739639446447,-500.0,0.00011123,2]
[353190333,1739639446457,-500.0,0.00011123,2]
[353190334,1739639446466,-500.0,0.00011123,2]
[353190335,1739639446477,-500.0,0.00011123,2]
[353190336,1739639446486,-500.0,0.00011123,2]
[353190337,1739639446496,-500.0,0.00011123,2]
[353190338,1739639446506,-500.0,0.00011123,2]
[353190339,1739639446516,-500.0,0.00011123,2]
[353190340,1739639446525,-500.0,0.00011123,2]
[353190341,1739639446535,-500.0,0.00011123,2]
[353190342,1739639446545,-500.0,0.00011123,2]
[353190343,1739639446555,-500.0,0.00011123,2]
[353190344,1739639446564,-500.0,0.00011123,2]
[353190345,1739639446574,-500.0,0.00011123,2]
[353190346,1739639446583,-500.0,0.00011123,2]
[353190347,1739639446593,-500.0,0.00011123,2]
[353190348,1739639446603,-500.0,0.00011123,2]
[353190349,1739639446613,-500.0,0.00011123,2]
[353190350,1739639446623,-500.0,0.00011123,2]
[353190351,1739639446632,-500.0,0.00011123,2]
[353190352,1739639446642,-258.26999999,0.00011123,2]
[353190353,1739639446652,-500.0,0.00011123,2]
[353190354,1739639446662,-630.19,0.00011123,2]
[353190355,1739639446671,-500.0,0.00011123,2]
[353190356,1739639446681,-500.0,0.00011123,2]
[353190357,1739639446691,-500.0,0.00011123,2]
[353190358,1739639446702,-465.46,0.00011123,2]
[353190359,1739639446712,-725.51,0.00011123,2]
[353190360,1739639446722,-500.0,0.00011123,2]
[353190361,1739639446731,-500.0,0.00011123,2]
[353190362,1739639446741,-500.0,0.00011123,2]
[353190363,1739639446751,-500.0,0.00011123,2]
[353190364,1739639446761,-500.0,0.00011123,2]
[353190365,1739639446772,-500.0,0.00011123,2]
[353190366,1739639446785,-500.0,0.00011123,2]
[353190367,1739639446795,-500.0,0.00011123,2]
[353190368,1739639446805,-500.0,0.00011123,2]
[353190369,1739639446815,-500.0,0.00011123,2]
[353190370,1739639446824,-500.0,0.00011123,2]
[353190371,1739639446834,-500.0,0.00011123,2]
[353190372,1739639446844,-500.0,0.00011123,2]
[353190373,1739639446855,-500.0,0.00011123,2]
[353190374,1739639446864,-500.0,0.00011123,2]
[353190375,1739639446874,-500.0,0.00011123,2]
[353190376,1739639446883,-607.26,0.00011123,2]
[353190377,1739639446893,-500.0,0.00011123,2]
[353190378,1739639446903,-500.0,0.00011123,2]
[353190379,1739639446913,-500.0,0.00011123,2]
[353190380,1739639446924,-500.0,0.00011123,2]
[353190381,1739639446933,-500.0,0.00011123,2]
[353190382,1739639446943,-500.0,0.00011123,2]
[353190383,1739639446953,-859.11,0.00011123,2]
[353190384,1739639446963,-500.0,0.00011123,2]
[353190385,1739639446973,-500.0,0.00011123,2]